bitfinex-derivatives/quotes_SOLF0:USTF0_20251107
["timestamp","ask_amount","ask_price","bid_price","bid_amount"]
[1762523246328,3.2,152.23,152.2,0.0453124]
[1762523246535,3.2,152.23,152.16,288.44293726]
[1762523246838,1.36401301,152.24,152.11,3.28]
[1762523246839,3.2,152.18,152.11,3.28]
[1762523247329,5.9178,152.2,152.11,3.28]
[1762523247524,5.9178,152.2,152.08,170.51228618]
[1762523247525,0.04330115,152.17,152.14,3.33012577]
[1762523247725,0.04330115,152.17,152.14,0.05012577]
[1762523248131,0.04330115,152.17,152.14,3.33012577]
[1762523248528,8.73228618,152.28,152.15,3.28]
[1762523248529,3.2,152.24,152.15,3.28]
[1762523249337,9.1165,152.23,152.18,5.9182]
[1762523249536,0.04834892,152.21,152.18,9.24770947]
[1762523250034,0.04834892,152.21,152.19,9.1979]
[1762523250237,0.04834892,152.21,152.2,3.28]
[1762523251035,3.2,152.26,152.21,9.197]
[1762523251241,3.2,152.26,152.21,3.28]
[1762523251434,5.9146,152.28,152.21,3.28]
[1762523251835,9.1151,152.27,152.21,3.28]
[1762523252031,3.24965536,152.26,152.22,0.04807312]
[1762523252234,3.24965536,152.26,152.22,0.044031]
[1762523252736,9.16495536,152.26,152.22,0.044031]
[1762523252935,3.2,152.25,152.22,0.044031]
[1762523254443,5.9162,152.24,152.22,0.044031]
[1762523254642,3.2,152.23,152.22,0.044031]
[1762523255539,3.18,152.23,152.22,0.044031]
[1762523256342,3.18,152.2,152.14,65.7596]
[1762523256538,3.18,152.2,152.14,59.84]
[1762523257148,3.18,152.2,152.12,3.04]
[1762523257343,17.91938172,152.27,152.14,0.04601868]
[1762523257344,3.22829847,152.18,152.14,0.04601868]
[1762523257546,3.22467628,152.18,152.14,0.04241958]
[1762523259636,0.04467628,152.18,152.14,3.27241958]
[1762523260246,0.04467628,152.18,152.16,3.23]
[1762523260950,0.04467628,152.18,152.16,9.1489]
[1762523261151,0.04467628,152.18,152.17,3.23]
[1762523261845,0.04467628,152.18,152.17,4.55]
[1762523262146,3.15,152.26,152.19,3.23]
[1762523262349,8.03624955,152.25,152.19,3.23]
[1762523262541,3.15,152.23,152.19,3.23]
[1762523263044,4.88634213,152.22,152.19,0.04382245]
[1762523263244,9.11455712,152.23,152.19,0.04382245]
[1762523263448,4.88729652,152.22,152.19,0.04382245]
[1762523263750,9.11455712,152.23,152.19,0.04382245]
[1762523264337,4.88767642,152.22,152.19,3.27382245]
[1762523264543,3.19805712,152.23,152.19,3.27382245]
[1762523265049,0.04805712,152.23,152.19,3.27382245]
[1762523265951,0.04805712,152.23,152.21,9.147]
[1762523266950,3.19805712,152.23,152.19,0.04382245]
[1762523267247,3.19805712,152.23,152.19,3.27382245]
[1762523267451,3.19805712,152.23,152.19,9.19172245]
[1762523268250,3.19805712,152.23,152.19,3.27382245]
[1762523268648,3.19805712,152.23,152.19,0.04382245]
[1762523268847,4.89113634,152.22,152.19,3.27382245]
[1762523269150,0.04805712,152.23,152.19,3.27382245]
[1762523269649,0.04805712,152.23,152.21,3.23]
[1762523270249,0.04805712,152.23,152.21,9.147]
[1762523270550,3.15,152.31,152.22,3.23]
[1762523270750,3.15,152.29,152.22,3.23]
[1762523270953,8.04233632,152.28,152.22,3.23]
[1762523271156,8.04233632,152.27,152.22,3.23]
[1762523271354,8.04233632,152.27,152.23,0.04146973]
[1762523271355,4.89233632,152.26,152.23,0.04146973]
[1762523271553,4.89233632,152.25,152.23,0.04146973]
[1762523271853,3.15,152.27,152.23,0.04146973]
[1762523272046,10.80813573,152.26,152.23,0.04146973]
[1762523272247,8.04302401,152.25,152.23,0.04146973]
[1762523272447,4.89302401,152.24,152.23,0.04146973]
[1762523272653,5.9153,152.26,152.23,0.04146973]
[1762523272847,4.89324656,152.25,152.23,0.04146973]
[1762523273047,5.9153,152.26,152.23,0.04146973]
[1762523273244,4.8932899,152.25,152.23,0.04146973]
[1762523273551,4.89344697,152.24,152.23,0.04146973]
[1762523273752,8.04344697,152.24,152.15,3.23]
[1762523273950,4.89344697,152.23,152.15,3.23]
[1762523274152,3.15,152.24,152.16,65.23]
[1762523274347,4.89482088,152.23,152.17,9.1487]
[1762523274554,3.15,152.21,152.17,9.1487]
[1762523274747,3.15,152.21,152.17,9.19379197]
[1762523275054,3.19506862,152.21,152.17,9.19379197]
[1762523275253,0.04506862,152.21,152.17,9.19379197]
[1762523275448,0.04506862,152.21,152.18,3.23]
[1762523276049,0.04506862,152.21,152.2,3.23]
[1762523277453,9.0649,152.27,152.22,3.23]
[1762523277657,4.89426259,152.26,152.22,3.23]
[1762523277854,4.89426259,152.25,152.22,3.23]
[1762523278053,5.9153,152.26,152.22,3.23]
[1762523278355,4.89425565,152.25,152.22,3.23]
[1762523278556,9.0653,152.26,152.22,3.27944682]
[1762523278752,13.95988928,152.25,152.22,0.04944682]
[1762523278958,3.15,152.25,152.22,0.04368966]
[1762523279958,3.15,152.28,152.22,3.27368966]
[1762523280159,4.89428886,152.27,152.23,3.27173888]
[1762523280454,4.89428886,152.26,152.23,9.18803888]
[1762523280659,3.15,152.31,152.23,3.27173888]
[1762523280851,8.04218901,152.3,152.25,3.27307272]
[1762523281052,8.04218901,152.29,152.26,0.05059278]
[1762523281253,4.89218901,152.28,152.26,0.05059278]
[1762523281561,9.0633,152.32,152.25,3.27741491]
[1762523281762,3.15,152.3,152.25,3.27741491]
[1762523282053,4.89180369,152.29,152.26,0.04210793]
[1762523282263,8.04246342,152.28,152.26,0.04210793]
[1762523282453,3.15,152.28,152.26,3.23]
[1762523282760,3.15,152.33,152.26,3.23]
[1762523282951,5.9134,152.31,152.28,0.04622758]
[1762523283147,4.89251777,152.3,152.28,0.04622758]
[1762523283353,4.89251777,152.29,152.28,0.04622758]
[1762523283554,3.15,152.32,152.28,3.27622758]
[1762523283753,4.89217819,152.31,152.28,3.27622758]
[1762523283957,4.89217819,152.3,152.28,3.27622758]
[1762523284151,3.15,152.35,152.28,3.27622758]
[1762523284457,4.89013977,152.34,152.31,3.23]
[1762523284657,4.88870334,152.33,152.3,3.2785614]
[1762523284858,8.00900145,152.32,152.3,0.04864523]
[1762523285050,4.88920532,152.31,152.29,3.14196052]
[1762523285257,9.032,152.35,152.29,3.14196052]
[1762523285258,3.12,152.35,152.29,3.1]
[1762523285458,4.88846195,152.34,152.29,3.1]
[1762523285758,8.00846195,152.33,152.29,3.1]
[1762523285960,3.12,152.31,152.28,0.04898039]
[1762523286166,8.00989591,152.3,152.28,0.04708936]
[1762523286468,4.88989591,152.29,152.27,0.04921306]
[1762523286665,3.12,152.38,152.27,3.14921306]
[1762523286961,23.95640071,152.43,152.31,0.04888202]
[1762523286962,12.87562899,152.37,152.31,0.04888202]
[1762523287166,4.88780796,152.36,152.32,0.04808296]
[1762523287358,4.88780796,152.35,152.32,3.14384239]
[1762523287560,4.88780796,152.34,152.32,0.04384239]
[1762523287862,8.00780796,152.33,152.32,0.04384239]
[1762523288066,4.88780796,152.33,152.32,0.04384239]
[1762523288964,9.0319,152.35,152.32,0.04384239]
[1762523289167,4.88223871,152.34,152.32,0.04384239]
[1762523289363,5.9119,152.35,152.32,0.04384239]
[1762523289565,4.87930353,152.34,152.32,0.04384239]
[1762523289765,9.0319,152.35,152.32,0.04384239]
[1762523289963,3.12,152.35,152.32,0.04384239]
[1762523291073,9.0319,152.35,152.32,0.04384239]
[1762523291870,3.12,152.35,152.32,0.04384239]
[1762523292064,3.12,152.37,152.32,3.14384239]
[1762523292467,3.12,152.4,152.32,3.14384239]
[1762523292670,3.12,152.4,152.34,0.04206343]
[1762523293175,9.0299,152.4,152.34,0.04206343]
[1762523293376,3.12,152.43,152.34,0.04206343]
[1762523293673,3.12,152.43,152.37,0.04996037]
[1762523294664,3.12,152.4,152.37,0.04996037]
[1762523294867,4.83999903,152.45,152.37,0.04642121]
[1762523294868,3.12,152.45,152.37,0.04642121]
[1762523295870,5.9092,152.42,152.37,0.04642121]
[1762523296175,3.12,152.41,152.37,0.04642121]
[1762523296869,3.12,152.41,152.37,3.14642121]
[1762523297066,3.12,152.4,152.37,0.04642121]
[1762523297276,3.12,152.4,152.37,0.04323047]
[1762523297477,3.12,152.38,152.37,0.04323047]
[1762523303481,9.0299,152.4,152.37,0.04323047]
[1762523303782,4.83501284,152.44,152.37,0.04323047]
[1762523303783,3.12,152.39,152.37,0.04323047]
[1762523305084,9.0303,152.39,152.37,0.04323047]
[1762523305385,3.12,152.38,152.37,0.04323047]
[1762523306184,9.0315,152.36,152.3,5.9136]
[1762523306386,3.12,152.35,152.29,3.1]
[1762523306587,3.12,152.35,152.26,3.1]
[1762523306780,3.12,152.35,152.27,5.9147]
[1762523306975,3.12,152.35,152.27,3.1]
[1762523307377,3.12,152.35,152.28,9.0142]
[1762523307576,3.16323047,152.33,152.29,0.042541]
[1762523307782,9.033,152.32,152.29,0.04295191]
[1762523308281,9.0334,152.31,152.29,0.04295191]
[1762523309083,3.12,152.32,152.29,0.04295191]
[1762523309487,3.16323047,152.33,152.29,0.04295191]
[1762523309781,0.04323047,152.33,152.29,3.14295191]
[1762523309975,0.04323047,152.33,152.3,3.1]
[1762523310178,3.12,152.41,152.31,3.1]
[1762523310379,3.12,152.4,152.31,3.1]
[1762523311081,5.9093,152.42,152.31,3.1]
[1762523311082,5.9093,152.42,152.33,3.1]
[1762523311275,5.9093,152.42,152.36,0.04743147]
[1762523311482,3.12,152.43,152.37,5.9109]
[1762523312892,3.12,152.43,152.39,3.1]
[1762523313087,3.12,152.43,152.39,0.04416281]
[1762523313882,9.0289,152.43,152.39,0.04416281]
[1762523314786,3.12,152.42,152.39,0.04416281]
[1762523314991,3.12,152.42,152.39,0.04606392]
[1762523315193,9.0996,152.41,152.39,0.04606392]
[1762523316285,5.9096,152.41,152.39,0.04606392]
[1762523316592,3.19,152.47,152.39,9.06616392]
[1762523316891,3.19,152.45,152.41,0.0502306]
[1762523317490,9.098,152.45,152.41,0.0502306]
[1762523317893,5.9071,152.47,152.41,3.1602306]
[1762523318191,5.9071,152.47,152.41,9.0694306]
[1762523318396,8.0260095,152.49,152.41,9.0694306]
[1762523318587,9.0965,152.49,152.41,3.1602306]
[1762523318786,9.0965,152.49,152.42,9.0189]
[1762523318987,3.19,152.49,152.42,3.11]
[1762523319386,3.19,152.49,152.45,3.11]
[1762523319582,5.9057,152.51,152.45,3.15353601]
[1762523319787,3.19,152.52,152.45,3.15353601]
[1762523319984,3.01,152.55,152.45,3.15353601]
[1762523320186,7.84355376,152.55,152.48,0.04357315]
[1762523320493,5.9046,152.54,152.48,0.04357315]
[1762523320688,3.01,152.55,152.48,0.04357315]
[1762523321096,8.9142,152.55,152.48,0.04357315]
[1762523321394,3.01,152.55,152.48,3.17357315]
[1762523321589,3.01,152.55,152.49,5.9061]
[1762523321997,3.01,152.55,152.48,3.17357315]
[1762523322195,3.01,152.55,152.48,0.04357315]
[1762523322602,8.914,152.55,152.48,9.08007315]
[1762523322795,8.914,152.55,152.48,3.17357315]
[1762523323098,8.914,152.55,152.48,65.17357315]
[1762523323301,5.9034,152.57,152.5,3.13]
[1762523323597,8.9134,152.57,152.52,0.04639456]
[1762523323996,3.01,152.57,152.52,3.17639456]
[1762523324292,6.08908172,152.63,152.52,3.17639456]
[1762523324293,4.76354122,152.62,152.52,3.17639456]
[1762523324601,6.08908172,152.63,152.52,3.17639456]
[1762523324602,3.01,152.61,152.55,0.05004057]
[1762523325290,8.9123,152.6,152.55,0.05004057]
[1762523325495,8.9123,152.6,152.56,3.1758671]
[1762523325999,4.76042706,152.65,152.56,3.1758671]
[1762523326000,5.9015,152.62,152.56,3.1758671]
[1762523326195,3.05,152.63,152.56,3.1758671]
[1762523327097,3.05,152.63,152.56,9.0791671]
[1762523327396,3.05,152.63,152.56,0.0458671]
[1762523328598,3.05,152.61,152.56,0.0458671]
[1762523328794,3.05,152.57,152.56,0.0458671]
[1762523330895,4.73969313,152.65,152.56,0.0458671]
[1762523330896,3.05,152.61,152.56,0.0458671]
[1762523332389,8.952,152.61,152.56,0.0458671]
[1762523332593,3.05,152.61,152.56,3.3258671]
[1762523333303,5.9023,152.6,152.56,3.3258671]
[1762523333493,3.05,152.61,152.56,3.3258671]
[1762523334203,3.05,152.6,152.56,0.0458671]
[1762523335094,3.05,152.65,152.56,0.0458671]
[1762523335296,3.05,152.65,152.59,0.04468582]
[1762523335698,8.9508,152.64,152.59,3.32468582]
[1762523335998,8.9508,152.64,152.6,3.32819913]
[1762523336303,8.9508,152.64,152.6,0.04819913]
[1762523336601,5.9,152.66,152.6,3.32819913]
[1762523336901,4.72733433,152.7,152.61,3.3238131]
[1762523336902,3.05,152.7,152.61,3.3238131]
[1762523337097,8.9484,152.7,152.64,0.04133218]
[1762523337294,3.05,152.75,152.65,3.28]
[1762523337795,3.05,152.75,152.68,0.04604827]
[1762523338196,3.05,152.72,152.68,0.04604827]
[1762523340102,3.05,152.71,152.6,3.28]
[1762523340499,3.05,152.67,152.6,3.28]
[1762523340802,3.05,152.67,152.59,5.11968771]
[1762523341001,3.05,152.67,152.59,8.39968771]
[1762523341202,0.04160459,152.65,152.61,0.04913133]
[1762523341404,0.04160459,152.65,152.61,3.32913133]
[1762523341904,0.04160459,152.65,152.62,5.11968771]
[1762523342107,0.04160459,152.65,152.62,8.39968771]
[1762523342299,0.04160459,152.65,152.61,0.04913133]
[1762523342502,3.09160459,152.65,152.61,0.04913133]
[1762523343001,5.9012,152.63,152.61,0.04913133]
[1762523343203,3.09160459,152.65,152.61,0.04913133]
[1762523343404,0.04160459,152.65,152.61,3.32913133]
[1762523343904,8.99180459,152.65,152.61,0.04913133]
[1762523344101,3.05,152.64,152.61,0.04913133]
[1762523344301,5.94180459,152.65,152.61,0.04913133]
[1762523344505,0.04160459,152.65,152.61,3.32913133]
[1762523344705,0.04160459,152.65,152.62,3.14]
[1762523344907,3.05,152.72,152.63,3.14]
[1762523345102,8.9477,152.72,152.64,8.25968771]
[1762523345311,3.05,152.72,152.64,8.25968771]
[1762523345514,9.0697,152.67,152.6,3.14]
[1762523345715,3.17,152.67,152.6,3.14]
[1762523346006,3.17,152.67,152.62,0.04664706]
[1762523346606,5.9,152.66,152.62,0.04664706]
[1762523346803,3.17,152.65,152.62,0.04664706]
[1762523347002,3.17,152.65,152.62,0.04704772]
[1762523348015,5.9006,152.64,152.62,0.04704772]
[1762523348210,3.17,152.65,152.62,0.04704772]
[1762523348915,9.0705,152.65,152.62,0.04704772]
[1762523349111,3.17,152.64,152.62,0.04704772]
[1762523349417,5.9005,152.65,152.62,0.04704772]
[1762523350413,3.17,152.68,152.62,0.04704772]
[1762523351208,5.9007,152.64,152.62,0.04704772]
[1762523351409,9.0707,152.64,152.62,0.04704772]
[1762523351910,3.17,152.63,152.62,0.04704772]
[1762523352407,3.17,152.63,152.46,5.11968771]
[1762523352408,5.9027,152.59,152.53,14.16438771]
[1762523352607,3.17,152.62,152.54,3.14]
[1762523352913,3.17,152.68,152.58,5.9028]
[1762523353315,3.21454489,152.65,152.61,0.04516749]
[1762523353515,3.21454489,152.65,152.62,3.14]
[1762523353516,0.0463607,152.65,152.62,3.14]
[1762523355914,9.1166607,152.65,152.61,0.04562726]
[1762523356114,3.17,152.64,152.61,0.04562726]
[1762523356520,3.17,152.62,152.61,0.04562726]
[1762523357013,3.17,152.57,152.48,3.14]
[1762523357213,3.17,152.57,152.48,8.25968771]
[1762523357416,5.9022,152.6,152.51,8.25968771]
[1762523357616,5.9022,152.6,152.52,3.14]
[1762523357815,3.17,152.61,152.52,3.14]
[1762523358012,3.21999483,152.58,152.55,0.04696901]
[1762523358217,3.21999483,152.58,152.55,0.04267584]
[1762523358218,3.21667272,152.58,152.55,0.04267584]
[1762523358725,0.04667272,152.58,152.55,0.04267584]
[1762523359416,3.21667272,152.58,152.55,0.04267584]
[1762523361725,3.17,152.56,152.55,0.04267584]
[1762523362021,3.17,152.56,152.47,8.25968771]
[1762523362222,3.17,152.56,152.47,3.14]
[1762523362420,3.17,152.53,152.46,5.9074]
[1762523362617,3.17,152.53,152.44,8.25968771]
[1762523362925,3.17,152.53,152.45,3.14]
[1762523363128,0.04443481,152.51,152.47,0.0417384]
[1762523363827,0.04443481,152.51,152.47,3.1817384]
[1762523364015,3.21443481,152.51,152.47,0.0417384]
[1762523364818,0.04443481,152.51,152.47,3.1817384]
[1762523365021,0.04443481,152.51,152.48,3.14]
[1762523365631,0.04443481,152.51,152.48,9.0466]
[1762523365830,0.04443481,152.51,152.48,3.14]
[1762523366025,0.04443481,152.51,152.47,5.16142611]
[1762523366525,3.21443481,152.51,152.47,0.0417384]
[1762523366829,0.04443481,152.51,152.47,3.1817384]
[1762523368124,0.04443481,152.51,152.47,0.0417384]
[1762523368125,3.21443481,152.51,152.47,0.0417384]
[1762523368631,0.04443481,152.51,152.47,3.1817384]
[1762523369237,0.04443481,152.51,152.48,9.0464]
[1762523369431,0.04443481,152.51,152.49,3.14]
[1762523370123,4.79234134,152.57,152.5,3.14]
[1762523370425,3.17,152.57,152.5,3.14]
[1762523370830,5.9038,152.56,152.5,3.14]
[1762523371132,0.04508841,152.55,152.51,3.18366088]
[1762523371730,3.21508841,152.55,152.51,3.18366088]
[1762523372229,9.11928841,152.55,152.51,3.18366088]
[1762523372433,9.11928841,152.55,152.51,0.04366088]
[1762523372622,3.21508841,152.55,152.51,0.04366088]
[1762523373333,9.11928841,152.55,152.51,0.04366088]
[1762523373724,5.9047,152.54,152.51,0.04366088]
[1762523373939,3.17,152.54,152.51,0.04366088]
[1762523374826,9.0746,152.54,152.51,0.04366088]
[1762523375226,0.04508841,152.55,152.51,3.01366088]
[1762523375830,3.05508841,152.55,152.51,3.01366088]
[1762523376228,0.04508841,152.55,152.51,8.91916088]
[1762523376740,0.04508841,152.55,152.52,2.97]
[1762523378532,3.05508841,152.55,152.51,0.04366088]
[1762523380139,8.95918841,152.55,152.51,0.04366088]
[1762523380332,3.28,152.54,152.51,0.04366088]
[1762523380736,3.28,152.52,152.51,0.04366088]
[1762523381746,3.28,152.54,152.51,0.04366088]
[1762523382743,0.04508841,152.55,152.51,3.04366088]
[1762523383436,0.04508841,152.55,152.53,5.9047]
[1762523383641,3.28,152.61,152.54,3.0]
[1762523383840,3.28,152.61,152.54,65.0]
[1762523384044,4.78766439,152.67,152.55,3.0]
[1762523384045,3.28,152.65,152.55,3.0]
[1762523384338,3.28,152.63,152.55,3.0]
[1762523384546,0.04155947,152.61,152.57,0.0447904]
[1762523384736,0.04155947,152.61,152.57,3.0447904]
[1762523385942,0.04155947,152.61,152.59,5.9024]
[1762523386250,0.04155947,152.61,152.59,8.9024]
[1762523386444,0.04155947,152.61,152.6,3.0]
[1762523386747,3.28,152.69,152.62,3.0]
[1762523386946,3.28,152.69,152.57,3.0]
[1762523387335,5.9004,152.65,152.58,5.9027]
[1762523387548,5.9004,152.65,152.58,8.9027]
[1762523387751,3.28,152.64,152.6,0.04529068]
[1762523387942,3.28,152.61,152.6,0.04343459]
[1762523388145,3.28,152.61,152.59,0.04500783]
[1762523388548,3.28,152.6,152.59,0.04500783]
[1762523388949,3.28,152.63,152.59,0.04500783]
[1762523389657,9.1815,152.62,152.59,0.04500783]
[1762523389951,3.28,152.66,152.59,0.04565419]
[1762523390152,3.28,152.66,152.61,0.04993016]
[1762523390353,6.08908172,152.7,152.61,0.04993016]
[1762523390354,9.1807,152.64,152.61,0.04993016]
[1762523390655,3.28,152.64,152.61,0.04993016]
[1762523390855,9.1807,152.64,152.61,0.04993016]
[1762523391054,5.9007,152.64,152.61,0.04993016]
[1762523391352,3.28,152.66,152.61,0.04993016]
[1762523391555,9.1807,152.64,152.61,0.04993016]
[1762523391763,9.1807,152.64,152.61,0.04499914]
[1762523392247,3.28,152.62,152.61,0.04499914]
[1762523392555,3.28,152.62,152.6,0.04458339]
[1762523394054,3.28,152.65,152.6,0.04458339]
[1762523394254,3.28,152.65,152.61,0.04942985]
[1762523395257,3.28,152.64,152.61,0.04942985]
[1762523395657,3.28,152.68,152.62,5.9012]
[1762523396859,3.28,152.68,152.61,3.04942985]
[1762523397954,3.28,152.68,152.61,0.04942985]
[1762523398261,9.1811,152.63,152.61,0.04942985]
[1762523398449,3.28,152.63,152.6,0.04867269]
[1762523398645,3.28,152.66,152.6,0.04867269]
[1762523398858,3.28,152.65,152.61,0.05039042]
[1762523399060,3.28,152.65,152.61,0.04179772]
[1762523400150,6.08908172,152.72,152.61,3.04179772]
[1762523400151,3.28,152.68,152.61,3.04179772]
[1762523400357,3.28,152.68,152.63,0.04534067]
[1762523400855,9.1792,152.68,152.63,3.04534067]
[1762523401061,3.28,152.68,152.63,3.04534067]
[1762523401255,3.28,152.68,152.63,0.04534067]
[1762523401461,3.28,152.68,152.63,3.04534067]
[1762523403053,3.28,152.72,152.64,3.0]
[1762523403251,3.28,152.76,152.67,3.0]
[1762523403461,4.80675024,152.81,152.7,3.04373485]
[1762523403663,9.1753,152.78,152.74,0.0495623]
[1762523404062,3.28,152.78,152.74,0.0495623]
[1762523404460,5.8957,152.77,152.74,0.0495623]
[1762523404765,3.28,152.76,152.74,0.0495623]
[1762523405264,3.03,152.75,152.74,0.0495623]
[1762523405761,4.80675024,152.82,152.74,0.0495623]
[1762523405969,3.03,152.79,152.74,3.2395623]
[1762523406166,3.03,152.79,152.75,0.04313064]
[1762523407871,3.03,152.83,152.75,3.23313064]
[1762523408062,3.03,152.83,152.77,0.04821192]
[1762523408261,8.9242,152.81,152.77,0.04821192]
[1762523408465,8.9242,152.81,152.77,0.04589058]
[1762523408964,3.03,152.79,152.77,0.04589058]
[1762523409166,3.03,152.79,152.76,0.04705166]
[1762523409463,5.8958,152.77,152.76,0.04705166]
[1762523409664,3.03,152.76,152.68,11.88963757]
[1762523409871,3.03,152.76,152.68,3.19]
[1762523410076,3.03,152.76,152.7,3.23322792]
[1762523411366,3.03,152.75,152.7,3.23322792]
[1762523411574,3.03,152.75,152.71,0.04903928]
[1762523412064,3.03,152.73,152.71,0.04903928]
[1762523412274,3.03,152.73,152.7,0.04514559]
[1762523412770,8.9273,152.73,152.7,0.04514559]
[1762523412967,3.03,152.72,152.7,0.04514559]
[1762523413175,3.03,152.75,152.69,0.04497611]
[1762523413469,3.03,152.75,152.7,0.04269775]
[1762523414073,4.7799443,152.8,152.7,3.23269775]
[1762523414074,3.03,152.79,152.7,3.23269775]
[1762523414274,3.03,152.79,152.73,0.04938933]
[1762523414674,3.03,152.77,152.73,0.04938933]
[1762523415372,19.56866359,152.84,152.73,0.04938933]
[1762523415373,3.03,152.79,152.73,0.04938933]
[1762523415671,3.03,152.79,152.74,0.04866298]
[1762523415872,3.03,152.79,152.74,3.23866298]
[1762523416180,3.03,152.79,152.74,0.04866298]
[1762523416474,8.9253,152.78,152.74,0.04866298]
[1762523416683,3.03,152.77,152.74,0.0432389]
[1762523416871,3.03,152.77,152.74,0.0471706]
[1762523417174,5.8961,152.76,152.74,0.0471706]
[1762523417374,8.9261,152.76,152.74,0.0471706]
[1762523417675,3.03,152.76,152.74,0.0471706]
[1762523417876,8.9261,152.76,152.74,0.0471706]
[1762523418881,3.03,152.75,152.74,0.0471706]
[1762523420471,3.03,152.74,152.66,3.19]
[1762523421374,3.07701717,152.72,152.68,0.04814678]
[1762523421574,3.07701717,152.72,152.68,0.04237517]
[1762523421878,5.94451717,152.72,152.68,3.23237517]
[1762523422078,0.04701717,152.72,152.68,3.23237517]
[1762523423474,0.04701717,152.72,152.69,3.19]
[1762523424274,0.04701717,152.72,152.7,3.19]
[1762523424482,3.03,152.79,152.7,3.19]
[1762523424680,3.03,152.79,152.71,3.19]
[1762523425480,3.03,152.79,152.73,0.04173919]
[1762523426684,5.8961,152.76,152.73,3.23173919]
[1762523426979,5.8964,152.75,152.73,3.23173919]
[1762523427180,3.03,152.74,152.73,0.04173919]
[1762523427484,8.9264,152.75,152.73,0.04173919]
[1762523427984,3.03,152.74,152.73,0.04173919]
[1762523431075,3.03,152.74,152.66,5.09602318]
[1762523431282,3.03,152.77,152.68,3.19]
[1762523431485,3.03,152.77,152.7,5.09602318]
[1762523431687,8.9257,152.77,152.7,5.09602318]
[1762523432073,3.03,152.74,152.72,0.0432696]
[1762523432280,3.03,152.74,152.71,0.04933468]
[1762523432587,3.07739687,152.74,152.71,0.04274104]
[1762523433984,3.03,152.72,152.71,0.04274104]
[1762523434284,0.04739687,152.74,152.71,3.23274104]
[1762523434781,0.04739687,152.74,152.71,0.04274104]
[1762523436487,3.27739687,152.74,152.71,0.04274104]
[1762523436881,0.04739687,152.74,152.71,3.00274104]
[1762523437687,0.04739687,152.74,152.72,2.96]
[1762523440084,0.04739687,152.74,152.71,5.13876422]
[1762523440392,3.06739687,152.74,152.71,5.13876422]
[1762523440594,3.06739687,152.74,152.71,0.04274104]
[1762523440885,3.02,152.72,152.71,0.04274104]
[1762523441890,5.8984,152.7,152.64,8.28602318]
[1762523442981,3.07005932,152.69,152.65,0.04553232]
[1762523443186,3.02,152.68,152.65,0.04413843]
[1762523443989,8.9192,152.68,152.65,0.04413843]
[1762523444895,3.02,152.68,152.65,0.04413843]
[1762523445883,3.02,152.66,152.65,0.04413843]
[1762523446387,3.02,152.68,152.65,0.04413843]
[1762523448488,7.77920168,152.68,152.65,0.04413843]
[1762523448795,3.02,152.66,152.65,0.04413843]
[1762523449396,0.04745698,152.69,152.65,0.04413843]
[1762523449397,3.02,152.68,152.65,0.04413843]
[1762523450094,3.02,152.67,152.65,0.04413843]
[1762523450594,3.02,152.66,152.65,0.04413843]
[1762523455300,5.8996,152.67,152.65,0.04413843]
[1762523455604,3.02,152.66,152.65,0.04413843]
[1762523460707,5.9017,152.61,152.6,287.56149064]
[1762523460913,3.02,152.61,152.52,8.28602318]
[1762523461109,3.02,152.61,152.52,3.19]
[1762523461317,3.02,152.6,152.53,3.19]
[1762523461512,3.02,152.64,152.55,3.19]
[1762523461713,3.02,152.64,152.56,66.8]
[1762523461910,3.06547409,152.61,152.58,0.05024311]
[1762523462114,3.0619965,152.61,152.58,0.04365869]
[1762523462316,0.0419965,152.61,152.58,3.23365869]
[1762523463021,3.0619965,152.61,152.58,0.04365869]
[1762523463317,5.9022,152.6,152.58,0.04365869]
[1762523463521,3.02,152.59,152.58,0.04365869]
[1762523463914,3.0619965,152.61,152.58,0.04365869]
[1762523464622,8.9637965,152.61,152.58,0.04365869]